Workbook

Sheet T (hidden)
A1: Tipo de vehículo | C1: Pregunta | F1: Adquisicion | H1: Editar
A2: 15 metroko autobusa | B2: T17 | C2: Bai | D2: S | F2: EROSKETA
A3: 12 metroko autobusa | B3: T18 | C3: Ez | D3: N | F3: ALOKAIRUA, LEASING...
A4: 9 metroko autobusa | B4: T19
A5: Mikrobusa | B5: T20
A6: Autobus arrunta (aurreko kategorietan sartzen ez diren gainerako ibilgailu guztiak) | B6: T21

Sheet DE (hidden)
C1: T17A | D1: T17 | E1: T18A | F1: T18 | G1: T19A | H1: T19 | I1: T20A | J1: T20 | K1: T21A | L1: T21
B2: Descripción: | D2: Autocar de 15 metros | F2: Autocar de 12 metros | H2: Autocar de 9 metros | J2: Microbús | L2: Autocar genérico (autocares no englobados en las categorías anteriores) | AJ2: 22/01/2024
B3: Tipo interes | D3: 0.0534 | F3: 0.0534 | H3: 0.0534 | J3: 0.0534 | L3: 0.0534
B4: Número de plazas incluido el conductor | D4: 65 | F4: 55 | H4: 35 | J4: 25 | L4: 55
B5: Potencia (CV) | D5: 420 | F5: 380 | H5: 280 | J5: 160 | L5: 380
B6: Masa Máxima Autorizada (kg) | D6: 0 | F6: 0 | H6: 0 | J6: 0 | L6: 0
B7: Número de ejes | C7: 95 | D7: 3 | E7: 95 | F7: 2 | G7: 95 | H7: 2 | I7: 95 | J7: 2 | K7: 95 | L7: 2
B8: Kilómetros recorridos anualmente | D8: 75000 | F8: 65000 | H8: 50000 | J8: 40000 | L8: 65000
B9: Kilómetros facturados de los recorridos al año (km) | C9: 95 | D9: =ROUND(D8*C9/100,2) -> 71250 | E9: 95 | F9: =F8*E9/100 -> 61750 | G9: 95 | H9: =H8*G9/100 -> 47500 | I9: 95 | J9: =J8*I9/100 -> 38000 | K9: 95 | L9: =L8*K9/100 -> 61750
B10: Consumo medio (litros/100km) | C10: 91 | D10: 30 | E10: 91 | F10: 26 | G10: 91 | H10: 21 | I10: 91 | J10: 15.5 | K10: 91 | L10: 26
B11: Horas trabajadas al año | C11: 90 | D11: 1800 | E11: 90 | F11: 1800 | G11: 90 | H11: 1800 | I11: 90 | J11: 1800 | K11: 90 | L11: 1800
B12: Horas facturadas de las trabajadas al año (h,%) | C12: 91 | D12: =ROUND(D11*C12/100,0) -> 1638 | E12: 91 | F12: =F11*E12/100 -> 1638 | G12: 91 | H12: =H11*G12/100 -> 1638 | I12: 91 | J12: =J11*I12/100 -> 1638 | K12: 91 | L12: =L11*K12/100 -> 1638
B13: Kilómetros con viajeros de los recorridos al año (km,%) | C13: 90 | D13: =ROUND(D8*C13/100,2) -> 67500 | E13: 90 | F13: =F8*E13/100 -> 58500 | G13: 90 | H13: =H8*G13/100 -> 45000 | I13: 90 | J13: =J8*I13/100 -> 36000 | K13: 90 | L13: =L8*K13/100 -> 58500
B14: Ocupación media de las plazas en los kilómetros recorridos con viajeros (viajeros/autocar,%) | C14: 80 | D14: =ROUND((D4-1)*C14/100,0) -> 51 | E14: 80 | F14: =ROUND((F4-1)*E14/100,0) -> 43 | G14: 80 | H14: =ROUND((H4-1)*G14/100,0) -> 27 | I14: 80 | J14: =ROUND((J4-1)*I14/100,0) -> 19 | K14: 80 | L14: =ROUND((L4-1)*K14/100,0) -> 43
B15: Producción anual: Viajeros x Kilómetros | D15: =D13*D14 -> 3442500 | F15: =F13*F14 -> 2515500 | H15: =H13*H14 -> 1215000 | J15: =J13*J14 -> 684000 | L15: =L13*L14 -> 2515500
B16: Pago de alquiler o leasing anual (€) | D16: 0 | F16: 0 | H16: 0 | J16: 0 | L16: 0 | M16: CHASIS
B17: Precio de adquisición (precio de tarifa - descuento) sin IVA (€) | C17: 20 | D17: 125573.76 | E17: 20 | F17: 110877.76 | G17: 20 | H17: 75360.14 | I17: 20 | J17: 38485.76 | K17: 20 | L17: 110877.76
B18: Vida útil (años) | D18: 12 | F18: 12 | H18: 12 | J18: 12 | L18: 12
B19: Valor residual sin IVA (€) | C19: 20 | D19: =ROUND(D17*C19/100,0) -> 25115 | E19: 20 | F19: =ROUND(F17*E19/100,0) -> 22176 | G19: 20 | H19: =ROUND(H17*G19/100,0) -> 15072 | I19: 20 | J19: =ROUND(J17*I19/100,0) -> 7697 | K19: 20 | L19: =ROUND(L17*K19/100,0) -> 22176
B20: AMORTIZACION DEL CHASIS | D20: =IFERROR(ROUND((D17-D19-D71*D74-D72*D75-D73*D76)/D18,0),0) -> 7924 | F20: =IFERROR(ROUND((F17-F19-F71*F74-F72*F75-F73*F76)/F18,0),0) -> 7113 | H20: =IFERROR(ROUND((H17-H19-H71*H74-H72*H75-H73*H76)/H18,0),0) -> 4778 | J20: =IFERROR(ROUND((J17-J19-J71*J74-J72*J75-J73*J76)/J18,0),0) -> 2365 | L20: =IFERROR(ROUND((L17-L19-L71*L74-L72*L75-L73*L76)/L18,0),0) -> 7113
B21: GASTOS FINANCIEROS DEL CHASIS | D21: =IFERROR(ROUND(IF(D17=0,0,(D17-D19-D71*D74-D72*D75-D73*D76)*(D$3/(1-POWER(1+D$3,-D18))-1/D18)),0),0) -> 3010.95 | F21: =IFERROR(ROUND(IF(F17=0,0,(F17-F19-F71*F74-F72*F75-F73*F76)*(F$3/(1-POWER(1+F$3,-F18))-1/F18)),0),0) -> 2702.87 | H21: =IFERROR(ROUND(IF(H17=0,0,(H17-H19-H71*H74-H72*H75-H73*H76)*(H$3/(1-POWER(1+H$3,-H18))-1/H18)),0),0) -> 1815.55 | J21: =IFERROR(ROUND(IF(J17=0,0,(J17-J19-J71*J74-J72*J75-J73*J76)*(J$3/(1-POWER(1+J$3,-J18))-1/J18)),0),0) -> 898.52 | L21: =IFERROR(ROUND(IF(L17=0,0,(L17-L19-L71*L74-L72*L75-L73*L76)*(L$3/(1-POWER(1+L$3,-L18))-1/L18)),0),0) -> 2702.87
B22: Pago de alquiler o leasing anual (€) | D22: 0 | F22: 0 | H22: 0 | J22: 0 | L22: 0 | M22: CARROZADO
B23: Precio de adquisición (precio de tarifa - descuento) sin IVA (€) | C23: 20 | D23: 125573.76 | E23: 20 | F23: 110877.76 | G23: 20 | H23: 75360.14 | I23: 20 | J23: 38485.76 | K23: 20 | L23: 110877.76
B24: Vida útil (años) | D24: 12 | F24: 12 | H24: 12 | J24: 12 | L24: 12
B25: Valor residual sin IVA (€) | C25: 20 | D25: =ROUND(D23*C25/100,0) -> 25115 | E25: 20 | F25: =ROUND(F23*E25/100,0) -> 22176 | G25: 20 | H25: =ROUND(H23*G25/100,0) -> 15072 | I25: 20 | J25: =ROUND(J23*I25/100,0) -> 7697 | K25: 20 | L25: =ROUND(L23*K25/100,0) -> 22176
B26: AMORTIZACION CARROZADO | D26: =IFERROR(ROUND((D23-D25)/D24,0),0) -> 8372 | F26: =IFERROR(ROUND((F23-F25)/F24,0),0) -> 7392 | H26: =IFERROR(ROUND((H23-H25)/H24,0),0) -> 5024 | J26: =IFERROR(ROUND((J23-J25)/J24,0),0) -> 2566 | L26: =IFERROR(ROUND((L23-L25)/L24,0),0) -> 7392
B27: GASTOS FINANCIEROS CARROZADO | D27: =IFERROR(ROUND(IF(D17=0,0,(D23-D25)*(D$3/(1-POWER(1+D$3,-D24))-1/D24)),0),0) -> 3181.11 | F27: =IFERROR(ROUND(IF(F17=0,0,(F23-F25)*(F$3/(1-POWER(1+F$3,-F24))-1/F24)),0),0) -> 2808.82 | H27: =IFERROR(ROUND(IF(H17=0,0,(H23-H25)*(H$3/(1-POWER(1+H$3,-H24))-1/H24)),0),0) -> 1909.08 | J27: =IFERROR(ROUND(IF(J17=0,0,(J23-J25)*(J$3/(1-POWER(1+J$3,-J24))-1/J24)),0),0) -> 974.95 | L27: =IFERROR(ROUND(IF(L17=0,0,(L23-L25)*(L$3/(1-POWER(1+L$3,-L24))-1/L24)),0),0) -> 2808.82
B28: Pago de alquiler o leasing anual (€) | D28: 0 | F28: 0 | H28: 0 | J28: 0 | L28: 0 | M28: EQUIPOS
B29: Precio de adquisición (precio de tarifa - descuento) sin IVA (€) | C29: 0 | D29: 0 | E29: 0 | F29: 0 | G29: 0 | H29: 0 | I29: 0 | J29: 0 | K29: 0 | L29: 0
B30: Vida útil (años) | D30: 0 | F30: 0 | H30: 0 | J30: 0 | L30: 0
B31: Valor residual sin IVA (€) | C31: 0 | D31: =ROUND(D29*C31/100,0) -> 0 | E31: 0 | F31: =ROUND(F29*E31/100,0) -> 0 | G31: 0 | H31: =ROUND(H29*G31/100,0) -> 0 | I31: 0 | J31: =ROUND(J29*I31/100,0) -> 0 | K31: 0 | L31: =ROUND(L29*K31/100,0) -> 0
B32: AMORTIZACION EQUIPOS | D32: =IFERROR(ROUND((D29-D31)/D30,0),0) -> 0 | F32: =IFERROR(ROUND((F29-F31)/F30,0),0) -> 0 | H32: =IFERROR(ROUND((H29-H31)/H30,0),0) -> 0 | J32: =IFERROR(ROUND((J29-J31)/J30,0),0) -> 0 | L32: =IFERROR(ROUND((L29-L31)/L30,0),0) -> 0
B33: GASTOS FINANCIEROS EQUIPOS | D33: =IFERROR(ROUND(IF(D17=0,0,(D29-D31)*(D$3/(1-POWER(1+D$3,-D30))-1/D30)),0),0) -> 0 | F33: =IFERROR(ROUND(IF(F17=0,0,(F29-F31)*(F$3/(1-POWER(1+F$3,-F30))-1/F30)),0),0) -> 0 | H33: =IFERROR(ROUND(IF(H17=0,0,(H29-H31)*(H$3/(1-POWER(1+H$3,-H30))-1/H30)),0),0) -> 0 | J33: =IFERROR(ROUND(IF(J17=0,0,(J29-J31)*(J$3/(1-POWER(1+J$3,-J30))-1/J30)),0),0) -> 0 | L33: =IFERROR(ROUND(IF(L17=0,0,(L29-L31)*(L$3/(1-POWER(1+L$3,-L30))-1/L30)),0),0) -> 0
B34: COSTES DE ADQUISICION | D34: =D16+D20+D21+D22+D26+D27+D28+D32+D33 -> 22488.06 | F34: =F16+F20+F21+F22+F26+F27+F28+F32+F33 -> 20016.69 | H34: =H16+H20+H21+H22+H26+H27+H28+H32+H33 -> 13526.63 | J34: =J16+J20+J21+J22+J26+J27+J28+J32+J33 -> 6804.47 | L34: =L16+L20+L21+L22+L26+L27+L28+L32+L33 -> 20016.69
B35: Coste total anual del personal de a bordo, incluidos costes de empresa (Seguridad Social y otros) (€) | D35: 33173.74 | F35: 33173.74 | H35: 33173.74 | J35: 33173.74 | L35: 33173.74
B36: Otros complementos retributivos del personal de a bordo (€) | D36: 0 | F36: 0 | H36: 0 | J36: 0 | L36: 0
B37: Dieta total diaria del personal de a bordo de transporte regular (€/día) | D37: 30.22 | F37: 30.22 | H37: 24.18 | J37: 24.18 | L37: 30.22
B38: Número de días de transporte regular con dieta al año | D38: 100 | F38: 100 | H38: 50 | J38: 25 | L38: 100
B39: Dieta total diaria internacional del personal de a bordo de transporte regular (€/día) | D39: 0 | F39: 0 | H39: 0 | J39: 0 | L39: 0
B40: Número de días de transporte regular con dieta internacional al año | D40: 0 | F40: 0 | H40: 0 | J40: 0 | L40: 0
B41: Dietas totales anuales por transporte regular (€) | D41: =D37*D38+D39*D40 -> 3022 | F41: =F37*F38+F39*F40 -> 3022 | H41: =H37*H38+H39*H40 -> 1209 | J41: =J37*J38+J39*J40 -> 604.5 | L41: =L37*L38+L39*L40 -> 3022
B42: Dieta total diaria del personal de a bordo de transporte discrecional (€/día) | D42: 30.22 | F42: 30.22 | H42: 24.18 | J42: 24.18 | L42: 30.22
B43: Número de días de transporte discrecional con dieta al año | D43: 100 | F43: 100 | H43: 50 | J43: 25 | L43: 100
B44: Dieta total diaria internacional del personal de a bordo de transporte discrecional (€/día) | D44: 0 | F44: 0 | H44: 0 | J44: 0 | L44: 0
B45: Número de días de transporte discrecional con dieta internacional al año | D45: 0 | F45: 0 | H45: 0 | J45: 0 | L45: 0
B46: Dietas totales anuales por transporte discrecional (€) | D46: =D42*D43+D44*D45 -> 3022 | F46: =F42*F43+F44*F45 -> 3022 | H46: =H42*H43+H44*H45 -> 1209 | J46: =J42*J43+J44*J45 -> 604.5 | L46: =L42*L43+L44*L45 -> 3022
B47: COSTES DE PERSONAL | D47: =D35+D41+D46 -> 39217.74 | F47: =F35+F41+F46 -> 39217.74 | H47: =H35+H41+H46 -> 35591.74 | J47: =J35+J41+J46 -> 34382.74 | L47: =L35+L41+L46 -> 39217.74
B48: Seguro obligatorio del autocar (€) | D48: 0 | F48: 0 | H48: 0 | J48: 0 | L48: 0
B49: Responsabilidad civil (€) | D49: 0 | F49: 0 | H49: 0 | J49: 0 | L49: 0
B50: Seguro obligatorio de viajeros (€) | D50: 0 | F50: 0 | H50: 0 | J50: 0 | L50: 0
B51: Seguro de accidentes del conductor (€) | D51: 0 | F51: 0 | H51: 0 | J51: 0 | L51: 0
B52: Defensa y reclamación de daños (€) | D52: 0 | F52: 0 | H52: 0 | J52: 0 | L52: 0
B53: Seguro de incendios (€) | D53: 0 | F53: 0 | H53: 0 | J53: 0 | L53: 0
B54: Otros seguros (€) | D54: 0 | F54: 0 | H54: 0 | J54: 0 | L54: 0
B55: TOTAL SEGUROS (€) | D55: 2872.33 | F55: 2443.47 | H55: 2014.12 | J55: 1725.83 | L55: 2443.47
B56: COSTE TOTAL ANUAL DE LOS SEGUROS (€) | D56: =D55 -> 2872.33 | F56: =F55 -> 2443.47 | H56: =H55 -> 2014.12 | J56: =J55 -> 1725.83 | L56: =L55 -> 2443.47
B57: Visados | D57: 0 | F57: 0 | H57: 0 | J57: 0 | L57: 0
B58: Inspección técnica de vehículos (I.T.V.) (€) | D58: 0 | F58: 0 | H58: 0 | J58: 0 | L58: 0
B59: Impuesto de actividades económicas (I.A.E.) repercutible a este vehículo (€) | D59: 0 | F59: 0 | H59: 0 | J59: 0 | L59: 0
B60: Impuesto de Vehículos de Tracción Mecánica (I.T.V.M.) (€) | D60: 0 | F60: 0 | H60: 0 | J60: 0 | L60: 0
B61: Revisión tacógrafo (€) | D61: 0 | F61: 0 | H61: 0 | J61: 0 | L61: 0
B62: Otros costes fiscales (€) | D62: 0 | F62: 0 | H62: 0 | J62: 0 | L62: 0
B63: TOTAL COSTES FISCALES (€) | D63: 1158.39 | F63: 1098.55 | H63: 924.68 | J63: 702.26 | L63: 1098.55
B64: COSTE FISCAL TOTAL ANUAL | D64: =D63 -> 1158.39 | F64: =F63 -> 1098.55 | H64: =H63 -> 924.68 | J64: =J63 -> 702.26 | L64: =L63 -> 1098.55
B65: SEGUROS Y COSTES FISCALES | C65: 6.8 | D65: =D56+D64 -> 4030.72 | E65: 6.8 | F65: =F56+F64 -> 3542.02 | G65: 6.8 | H65: =H56+H64 -> 2938.8 | I65: 6.8 | J65: =J56+J64 -> 2428.09 | K65: 6.8 | L65: =L56+L64 -> 3542.02
B66: Precio del carburante, con IVA (€/litro) | C66: 21 | D66: 1.6831 | E66: 21 | F66: 1.6831 | G66: 21 | H66: 1.6831 | I66: 21 | J66: 1.6831 | K66: 21 | L66: 1.6831
B67: Descuento (%, €/litro) | C67: 6.8 | D67: =ROUND(D66*C67/100,3) -> 0.11 | E67: 6.8 | F67: =ROUND(F66*E67/100,3) -> 0.11 | G67: 6.8 | H67: =ROUND(H66*G67/100,3) -> 0.11 | I67: 6.8 | J67: =ROUND(J66*I67/100,3) -> 0.11 | K67: 6.8 | L67: =ROUND(L66*K67/100,3) -> 0.11
B68: IVA aplicado al carburante (€/litro) | C68: 21 | D68: =ROUND((C68/100)*(D66-D67)/(1+C68/100),2) -> 0.27 | E68: 21 | F68: =ROUND((E68/100)*(F66-F67)/(1+E68/100),2) -> 0.27 | G68: 21 | H68: =ROUND((G68/100)*(H66-H67)/(1+G68/100),2) -> 0.27 | I68: 21 | J68: =ROUND((I68/100)*(J66-J67)/(1+I68/100),2) -> 0.27 | K68: 21 | L68: =ROUND((K68/100)*(L66-L67)/(1+K68/100),2) -> 0.27
B69: Precio carburante sin IVA (€/litro) | D69: =ROUND((D66-D67)/(1+C68/100),2) -> 1.3 | F69: =ROUND((F66-F67)/(1+E68/100),2) -> 1.3 | H69: =ROUND((H66-H67)/(1+G68/100),2) -> 1.3 | J69: =ROUND((J66-J67)/(1+I68/100),2) -> 1.3 | L69: =ROUND((L66-L67)/(1+K68/100),2) -> 1.3
B70: GASTO TOTAL ANUAL EN CARBURANTE, SIN IVA (€) | D70: =ROUND(D8/100*D10*D69,0) -> 29250 | F70: =ROUND(F8/100*F10*F69,0) -> 21970 | H70: =ROUND(H8/100*H10*H69,0) -> 13650 | J70: =ROUND(J8/100*J10*J69,0) -> 8060 | L70: =ROUND(L8/100*L10*L69,0) -> 21970
B71: Número de neumáticos direccionables | D71: 4 | F71: 2 | H71: 2 | J71: 2 | L71: 2
B72: Número de neumáticos motrices | D72: 4 | F72: 4 | H72: 4 | J72: 4 | L72: 4
B73: Número de neumáticos arrastre | D73: 0 | F73: 0 | H73: 0 | J73: 0 | L73: 0
B74: Precio sin IVA de un neumático direccionable (€) | D74: 671.71 | F74: 557.64 | H74: 492.26 | J74: 402.28 | L74: 557.64
B75: Precio sin IVA de un neumático motriz (€) | D75: 671.71 | F75: 557.64 | H75: 492.26 | J75: 402.28 | L75: 557.64
B76: Precio sin IVA de un neumático arrastre (€) | D76: 671.71 | F76: 557.64 | H76: 492.26 | J76: 402.28 | L76: 557.64
B77: Duración media de un neumático direccionable (km) | D77: 70000 | F77: 70000 | H77: 70000 | J77: 70000 | L77: 70000
B78: Duración media de un neumático motriz (km) | D78: 70000 | F78: 70000 | H78: 70000 | J78: 70000 | L78: 70000
B79: Duración media de un neumático arrastre (km) | D79: 70000 | F79: 70000 | H79: 70000 | J79: 70000 | L79: 70000
B80: GASTO TOTAL ANUAL EN NEUMATICOS, SIN IVA (€) | D80: =ROUND(IFERROR(D71*D74*D$8/D77,0)+IFERROR(D72*D75*D$8/D78,0)+IFERROR(D73*D76*D$8/D79,0),0) -> 5757.51 | F80: =ROUND(IFERROR(F71*F74*F$8/F77,0)+IFERROR(F72*F75*F$8/F78,0)+IFERROR(F73*F76*F$8/F79,0),0) -> 3106.85 | H80: =ROUND(IFERROR(H71*H74*H$8/H77,0)+IFERROR(H72*H75*H$8/H78,0)+IFERROR(H73*H76*H$8/H79,0),0) -> 2109.69 | J80: =ROUND(IFERROR(J71*J74*J$8/J77,0)+IFERROR(J72*J75*J$8/J78,0)+IFERROR(J73*J76*J$8/J79,0),0) -> 1379.25 | L80: =ROUND(IFERROR(L71*L74*L$8/L77,0)+IFERROR(L72*L75*L$8/L78,0)+IFERROR(L73*L76*L$8/L79,0),0) -> 3106.85
B81: Coste de mantenimento y reparaciones por km, sin IVA (€/km) | D81: 0.1578 | F81: 0.15 | H81: 0.1096 | J81: 0.0672 | L81: 0.15
B82: GASTO ANUAL EN MANTENIMIENTO Y REPARACIONES, SIN IVA (€) | D82: =ROUND(D81*D8,2) -> 11835 | F82: =ROUND(F81*F8,2) -> 9750 | H82: =ROUND(H81*H8,2) -> 5480 | J82: =ROUND(J81*J8,2) -> 2688 | L82: =ROUND(L81*L8,2) -> 9750
B83: GASTO ANUAL EN PEAJES, SIN IVA (€) | D83: 0 | F83: 0 | H83: 0 | J83: 0 | L83: 0
B84: COSTES VARIABLES | D84: =ROUND(D70+D80+D82+D83,2) -> 46842.51 | F84: =ROUND(F70+F80+F82+F83,2) -> 34826.85 | H84: =ROUND(H70+H80+H82+H83,2) -> 21239.69 | J84: =ROUND(J70+J80+J82+J83,2) -> 12127.25 | L84: =ROUND(L70+L80+L82+L83,2) -> 34826.85
B85: COSTES DIRECTOS | D85: =ROUND(D34+D47+D65+D84,2) -> 112579.03 | F85: =ROUND(F34+F47+F65+F84,2) -> 97603.3 | H85: =ROUND(H34+H47+H65+H84,2) -> 73296.86 | J85: =ROUND(J34+J47+J65+J84,2) -> 55742.55 | L85: =ROUND(L34+L47+L65+L84,2) -> 97603.3
B86: Costes anuales de gestión, administración y comercialización, repercutibles a este vehículo | D86: =ROUND(12.5/100*D85,0) -> 14072.38 | F86: =ROUND(12.5/100*F85,0) -> 12200.41 | H86: =ROUND(12.5/100*H85,0) -> 9162.11 | J86: =ROUND(12.5/100*J85,0) -> 6967.82 | L86: =ROUND(12.5/100*L85,0) -> 12200.41
B87: COSTES INDIRECTOS | D87: =ROUND(D86,0) -> 14072.38 | F87: =ROUND(F86,0) -> 12200.41 | H87: =ROUND(H86,0) -> 9162.11 | J87: =ROUND(J86,0) -> 6967.82 | L87: =ROUND(L86,0) -> 12200.41
B88: COSTES TOTALES | D88: =ROUND(D85+D87,0) -> 126651.41 | F88: =ROUND(F85+F87,0) -> 109803.71 | H88: =ROUND(H85+H87,0) -> 82458.97 | J88: =ROUND(J85+J87,0) -> 62710.37 | L88: =ROUND(L85+L87,0) -> 109803.71

Sheet Ibilgailu-mota
C6: 1. Ibilgailu-mota hautatu
C10: Ibilgailu-mota: | E10: =VLOOKUP(F10,T!A2:B17,2,0) -> T18 | F10: 12 metroko autobusa
C13: ¿Desea cargar los datos estadísticos en los campos a rellenar? | G13: No
C16: Kalkulu-formularioetara gehitutako datu estatistikoekin simulazioa hasi nahi duzu?

Sheet Ibilgailuaren Ezaugarriak
C6: 1. Ibilgailuaren Ezaugarriak
C9: Ibilgailuaren ezaugarri teknikoak | L9: Datu estadistikoak | M9: =DE!$AJ$2 -> 08/01/2024
C11: Deskripzioa: | J11: =IF(HLOOKUP('Ibilgailu-mota'!$E$10,DE!$D$1:$AX$15,2,0)="","",HLOOKUP('Ibilgailu-mota'!$E$10,DE!$D$1:$AX$15,2,0)) -> Autocar de 12 metros
C13: Plaza kopurua, gidaria barne | L13: =IF(HLOOKUP('Ibilgailu-mota'!$E$10,DE!$D$1:$AK$15,4,0)="","",HLOOKUP('Ibilgailu-mota'!$E$10,DE!$D$1:$AK$15,4,0)) -> 
C15: Potentzia (CV) | L15: =IF(HLOOKUP('Ibilgailu-mota'!$E$10,DE!$D$1:$AK$15,5,0)="","",HLOOKUP('Ibilgailu-mota'!$E$10,DE!$D$1:$AK$15,5,0)) -> 
C17: MMA ( Tm) | L17: =IF(HLOOKUP('Ibilgailu-mota'!$E$10,DE!$D$1:$AK$15,6,0)="","",HLOOKUP('Ibilgailu-mota'!$E$10,DE!$D$1:$AK$15,6,0)) -> 
C19: Ardatz-kopurua | L19: =IF(HLOOKUP('Ibilgailu-mota'!$E$10,DE!$D$1:$AK$15,7,0)="","",HLOOKUP('Ibilgailu-mota'!$E$10,DE!$D$1:$AK$15,7,0)) -> 
C21: Ibilgailuaren ustiapen-ezaugarriak | L21: Datu estadistikoak | M21: =DE!$AJ$2 -> 08/01/2024
C23: Urtero egindako kilometroak (km) | L23: =IF(HLOOKUP('Ibilgailu-mota'!$E$10,DE!$D$1:$AK$15,8,0)="","",HLOOKUP('Ibilgailu-mota'!$E$10,DE!$D$1:$AK$15,8,0)) -> 
C25: Urtean egindako kilometroetatik fakturatutakoak (km) | I25: % | J25: =ROUND(J23*H25/100,2) -> 0 | K25: =IF(HLOOKUP(CONCATENATE('Ibilgailu-mota'!$E$10,"A"),DE!$C$1:$AK$15,9,0)="","",HLOOKUP(CONCATENATE('Ibilgailu-mota'!$E$10,"A"),DE!$C$1:$AK$15,9,0)) ->  | L25: =IF(HLOOKUP('Ibilgailu-mota'!$E$10,DE!$D$1:$AK$15,9,0)="","",HLOOKUP('Ibilgailu-mota'!$E$10,DE!$D$1:$AK$15,9,0)) -> 0
C27: Batez besteko kontsumoa (litro/100km) | L27: =IF(HLOOKUP('Ibilgailu-mota'!$E$10,DE!$D$1:$AK$15,10,0)="","",HLOOKUP('Ibilgailu-mota'!$E$10,DE!$D$1:$AK$15,10,0)) -> 
C29: Urtean lanean emandako orduak | L29: =IF(HLOOKUP('Ibilgailu-mota'!$E$10,DE!$D$1:$AK$15,11,0)="","",HLOOKUP('Ibilgailu-mota'!$E$10,DE!$D$1:$AK$15,11,0)) -> 
C31: Urtean egindakoetatik orduetatik fakturatutakoak (h,%) | I31: % | J31: =ROUND(J29*H31/100,0) -> 0 | K31: =IF(HLOOKUP(CONCATENATE('Ibilgailu-mota'!$E$10,"A"),DE!$C$1:$AK$15,12,0)="","",HLOOKUP(CONCATENATE('Ibilgailu-mota'!$E$10,"A"),DE!$C$1:$AK$15,12,0)) ->  | L31: =IF(HLOOKUP('Ibilgailu-mota'!$E$10,DE!$D$1:$AK$15,12,0)="","",HLOOKUP('Ibilgailu-mota'!$E$10,DE!$D$1:$AK$15,12,0)) -> 0
C33: Garraiatutako bidaiariak
C35: Egindako kilometroetatik bidaiariekin egindako kilometroak (km,%) | I35: % | J35: =ROUND(J23*H35/100,2) -> 0 | K35: =IF(HLOOKUP(CONCATENATE('Ibilgailu-mota'!$E$10,"A"),DE!$C$1:$AK$15,13,0)="","",HLOOKUP(CONCATENATE('Ibilgailu-mota'!$E$10,"A"),DE!$C$1:$AK$15,13,0)) ->  | L35: =IF(HLOOKUP('Ibilgailu-mota'!$E$10,DE!$D$1:$AK$15,13,0)="","",HLOOKUP('Ibilgailu-mota'!$E$10,DE!$D$1:$AK$15,13,0)) -> 0
C37: Bidaiariekin egindako kilometroetan batez beste okupatutako plazak (% bidaiari/autobus) | I37: % | J37: =ROUND((J13-1)*H37/100,0) -> 0 | K37: =IF(HLOOKUP(CONCATENATE('Ibilgailu-mota'!$E$10,"A"),DE!$C$1:$AK$15,14,0)="","",HLOOKUP(CONCATENATE('Ibilgailu-mota'!$E$10,"A"),DE!$C$1:$AK$15,14,0)) ->  | L37: =IF(HLOOKUP('Ibilgailu-mota'!$E$10,DE!$D$1:$AK$15,14,0)="","",HLOOKUP('Ibilgailu-mota'!$E$10,DE!$D$1:$AK$15,14,0)) -> 0
C39: Urteko ekoizpena: bidaiariak x kilometroak | J39: =J35*(J13-1)*H37/100 -> 0 | L39: =IF(HLOOKUP('Ibilgailu-mota'!$E$10,DE!$D$1:$AK$15,15,0)="","",HLOOKUP('Ibilgailu-mota'!$E$10,DE!$D$1:$AK$15,15,0)) -> 0

Sheet Erosketa kostuak
C6: 2. Erosketa kostuak
C9: Autobusaren bastidorea | L9: Datu estadistikoak | M9: =DE!$AJ$2 -> 08/01/2024
L10: =IF(HLOOKUP('Ibilgailu-mota'!$E$10,DE!$D$1:$AX$285,3,0)="","",HLOOKUP('Ibilgailu-mota'!$E$10,DE!$D$1:$AX$285,3,0)) -> 
C11: Autobusaren bastidorea: | J11: EROSKETA
C13: Urteko alokairu edo leasing-aren ordainketa (€) | L13: =IF(HLOOKUP('Ibilgailu-mota'!$E$10,DE!$D$1:$AX$285,16,0)="","",HLOOKUP('Ibilgailu-mota'!$E$10,DE!$D$1:$AX$285,16,0)) -> 
C15: Bastidorearen erosketa (€)
C17: Erosketa-prezioa (tarifa prezioa-deskontua), BEZ gabe (€) | L17: =IF(HLOOKUP('Ibilgailu-mota'!$E$10,DE!$D$1:$AX$285,17,0)="","",HLOOKUP('Ibilgailu-mota'!$E$10,DE!$D$1:$AX$285,17,0)) -> 
C19: Bizitza teknikoa (urteak) | L19: =IF(HLOOKUP('Ibilgailu-mota'!$E$10,DE!$D$1:$AX$285,18,0)="","",HLOOKUP('Ibilgailu-mota'!$E$10,DE!$D$1:$AX$285,18,0)) -> 
C21: Hondar-balioa BEZ gabe (€) | I21: % | J21: =IFERROR(ROUND(J$17*H21/100,0),0) -> 0 | K21: =IF(HLOOKUP(CONCATENATE('Ibilgailu-mota'!$E$10,"A"),DE!$C$1:$AK$185,19,0)="","",HLOOKUP(CONCATENATE('Ibilgailu-mota'!$E$10,"A"),DE!$C$1:$AK$185,19,0)) ->  | L21: =IF(HLOOKUP('Ibilgailu-mota'!$E$10,DE!$D$1:$AX$285,19,0)="","",HLOOKUP('Ibilgailu-mota'!$E$10,DE!$D$1:$AX$285,19,0)) -> 0
C23: BASTIDOREAREN AMORTIZAZIOA (€) | J23: =ROUND(IFERROR(IF(J11=T!F2,ROUND((J17-J21-('Kostu aldakorrak'!J$23*'Kostu aldakorrak'!J$29)-('Kostu aldakorrak'!J$25*'Kostu aldakorrak'!J$31)-('Kostu aldakorrak'!J$27*'Kostu aldakorrak'!J$33))*(1/J19),2),0),0),0) -> 0 | L23: =IF(HLOOKUP('Ibilgailu-mota'!$E$10,DE!$D$1:$AX$285,20,0)="","",HLOOKUP('Ibilgailu-mota'!$E$10,DE!$D$1:$AX$285,20,0)) -> 0
C25: TRAKZIOZKO IBILGAILUAREN FINANTZA GASTUAK (€) | J25: =ROUND(IFERROR(IF(J11=T!F2,ROUND((J17-J21-('Kostu aldakorrak'!J$23*'Kostu aldakorrak'!J$29)-('Kostu aldakorrak'!J$25*'Kostu aldakorrak'!J$31)-('Kostu aldakorrak'!J$27*'Kostu aldakorrak'!J$33))*(-(1/J19)+L$10/(1-POWER(1+L$10,-J19))),2),0),0),0) -> 0 | L25: =IF(HLOOKUP('Ibilgailu-mota'!$E$10,DE!$D$1:$AX$285,21,0)="","",HLOOKUP('Ibilgailu-mota'!$E$10,DE!$D$1:$AX$285,21,0)) -> 0
C27: Karrozeria jartzea | L27: Datu estadistikoak | M27: =DE!$AJ$2 -> 08/01/2024
C29: Erosteko modua: | J29: EROSKETA
C31: Urteko alokairu edo leasing-aren ordainketa (€) | L31: =IF(HLOOKUP('Ibilgailu-mota'!$E$10,DE!$D$1:$AX$285,22,0)="","",HLOOKUP('Ibilgailu-mota'!$E$10,DE!$D$1:$AX$285,22,0)) -> 
C33: Karrozeriaren erosketa (€)
C35: Erosketa-prezioa (tarifa prezioa-deskontua), BEZ gabe (€) | L35: =IF(HLOOKUP('Ibilgailu-mota'!$E$10,DE!$D$1:$AX$285,23,0)="","",HLOOKUP('Ibilgailu-mota'!$E$10,DE!$D$1:$AX$285,23,0)) -> 
C37: Bizitza teknikoa (urteak) | L37: =IF(HLOOKUP('Ibilgailu-mota'!$E$10,DE!$D$1:$AX$285,24,0)="","",HLOOKUP('Ibilgailu-mota'!$E$10,DE!$D$1:$AX$285,24,0)) -> 
C39: Hondar-balioa BEZ gabe (€) | I39: % | J39: =IFERROR(ROUND(J35*H39/100,0),0) -> 0 | K39: =IF(HLOOKUP(CONCATENATE('Ibilgailu-mota'!$E$10,"A"),DE!$C$1:$AK$185,25,0)="","",HLOOKUP(CONCATENATE('Ibilgailu-mota'!$E$10,"A"),DE!$C$1:$AK$185,25,0)) ->  | L39: =IF(HLOOKUP('Ibilgailu-mota'!$E$10,DE!$D$1:$AX$285,25,0)="","",HLOOKUP('Ibilgailu-mota'!$E$10,DE!$D$1:$AX$285,25,0)) -> 0
C41: KARROZERIAREN AMORTIZAZIOA (€) | J41: =IFERROR(IF(J29=T!F2,ROUND((J35-J39)*(1/J37),0),0),0) -> 0 | L41: =IF(HLOOKUP('Ibilgailu-mota'!$E$10,DE!$D$1:$AX$285,26,0)="","",HLOOKUP('Ibilgailu-mota'!$E$10,DE!$D$1:$AX$285,26,0)) -> 0
C43: KARROZERIAREN FINANTZA GASTUAK (€) | J43: =IFERROR(IF(J29=T!F2,ROUND((J35-J39)*(-(1/J$19)+L$10/(1-POWER(1+L$10,-J37))),0),0),0) -> 0 | L43: =IF(HLOOKUP('Ibilgailu-mota'!$E$10,DE!$D$1:$AX$285,27,0)="","",HLOOKUP('Ibilgailu-mota'!$E$10,DE!$D$1:$AX$285,27,0)) -> 0
C45: Ekipo osagarriak | L45: Datu estadistikoak | M45: =DE!$AJ$2 -> 08/01/2024
C47: Erosteko modua: | J47: EROSKETA
C49: Urteko alokairu edo leasing-aren ordainketa (€) | L49: =IF(HLOOKUP('Ibilgailu-mota'!$E$10,DE!$D$1:$AX$285,28,0)="","",HLOOKUP('Ibilgailu-mota'!$E$10,DE!$D$1:$AX$285,28,0)) -> 
C51: Ekipamendu osagarri amortizagarrien erosketa (€)
C53: Erosketa-prezioa (tarifa prezioa - deskontua) BEZ gabe (€) | L53: =IF(HLOOKUP('Ibilgailu-mota'!$E$10,DE!$D$1:$AX$285,29,0)="","",HLOOKUP('Ibilgailu-mota'!$E$10,DE!$D$1:$AX$285,29,0)) -> 
C55: Bizitza teknikoa (urteak) | L55: =IF(HLOOKUP('Ibilgailu-mota'!$E$10,DE!$D$1:$AX$285,30,0)="","",HLOOKUP('Ibilgailu-mota'!$E$10,DE!$D$1:$AX$285,30,0)) -> 
C57: Hondar-balioa BEZ gabe (€) | I57: % | J57: =IFERROR(ROUND(J53*H57/100,0),0) -> 0 | K57: =IF(HLOOKUP(CONCATENATE('Ibilgailu-mota'!$E$10,"A"),DE!$C$1:$AK$185,31,0)="","",HLOOKUP(CONCATENATE('Ibilgailu-mota'!$E$10,"A"),DE!$C$1:$AK$185,31,0)) ->  | L57: =IF(HLOOKUP('Ibilgailu-mota'!$E$10,DE!$D$1:$AX$285,31,0)="","",HLOOKUP('Ibilgailu-mota'!$E$10,DE!$D$1:$AX$285,31,0)) -> 0
C59: EKIPOEN AMORTIZAZIOA (€) | J59: =IFERROR(IF(J47=T!F2,ROUND((J53-J57)*(1/J55),0),0),0) -> 0 | L59: =IF(HLOOKUP('Ibilgailu-mota'!$E$10,DE!$D$1:$AX$285,32,0)="","",HLOOKUP('Ibilgailu-mota'!$E$10,DE!$D$1:$AX$285,32,0)) -> 0
C61: EKIPOEN FINANTZA GASTUAK (€) | J61: =IFERROR(IF(J47=T!F2,ROUND((J53-J57)*(-(1/J$19)+L$10/(1-POWER(1+L$10,-J55))),0),0),0) -> 0 | L61: =IF(HLOOKUP('Ibilgailu-mota'!$E$10,DE!$D$1:$AX$285,33,0)="","",HLOOKUP('Ibilgailu-mota'!$E$10,DE!$D$1:$AX$285,33,0)) -> 0
C63: EROSKETA KOSTUAK (€) | J63: =IFERROR(IF(J11=T!F2,J23+J25,J13)+IF(J29=T!F2,J41+J43,J31)+IF(J47=T!F2,J59+J61,J49),0) -> 0 | L63: =IF(HLOOKUP('Ibilgailu-mota'!$E$10,DE!$D$1:$AX$285,34,0)="","",HLOOKUP('Ibilgailu-mota'!$E$10,DE!$D$1:$AX$285,34,0)) -> 0

Sheet Ibilgailuan doazen langileen ko
C6: 3. Ibilgailuan doazen langileen kostuak
C9: IBIGAILUAN DOAZEN LANGILEEN KOSTUAK | J9: Datu estadistikoak | K9: =DE!$AJ$2 -> 08/01/2024
C11: Ibilgailuan doazen langileen urteko kostuak, guztira, enpresa-kostuak barne (Gizarte Segurantza eta beste)(€) | J11: =IF(HLOOKUP('Ibilgailu-mota'!$E$10,DE!$D$1:$AK$284,35,0)="","",HLOOKUP('Ibilgailu-mota'!$E$10,DE!$D$1:$AK$284,35,0)) -> 
C13: Ibilgailuan doazen langileen beste ordainsari osagarri batzuk (€) | J13: =IF(HLOOKUP('Ibilgailu-mota'!$E$10,DE!$D$1:$AK$284,36,0)="","",HLOOKUP('Ibilgailu-mota'!$E$10,DE!$D$1:$AK$284,36,0)) -> 
C15: GARRAIO ERREGULARREKO ZERBITZUAK
C17: Garraio erregularreko ibilgailuan doazen langileen eguneko dieta osoa (€/egun) | J17: =IF(HLOOKUP('Ibilgailu-mota'!$E$10,DE!$D$1:$AK$284,37,0)="","",HLOOKUP('Ibilgailu-mota'!$E$10,DE!$D$1:$AK$284,37,0)) -> 
C19: Dietarekin urtean emandako garraio erregularreko egunen kopurua | J19: =IF(HLOOKUP('Ibilgailu-mota'!$E$10,DE!$D$1:$AK$284,38,0)="","",HLOOKUP('Ibilgailu-mota'!$E$10,DE!$D$1:$AK$284,38,0)) -> 
C21: Garraio erregularreko ibilgailuan doazen langileen eguneko nazioarteko dieta osoa (€/egun) | J21: =IF(HLOOKUP('Ibilgailu-mota'!$E$10,DE!$D$1:$AK$284,39,0)="","",HLOOKUP('Ibilgailu-mota'!$E$10,DE!$D$1:$AK$284,39,0)) -> 
C23: Nazioarteko dietarekin urtean egindako garraio erregularreko egunen kopurua | J23: =IF(HLOOKUP('Ibilgailu-mota'!$E$10,DE!$D$1:$AK$284,40,0)="","",HLOOKUP('Ibilgailu-mota'!$E$10,DE!$D$1:$AK$284,40,0)) -> 
C25: Garraio erregularrengatiko urteko dieta guztiak (€) | H25: =IFERROR((H17*H19)+(H21*H23),0) -> 0 | J25: =IF(HLOOKUP('Ibilgailu-mota'!$E$10,DE!$D$1:$AK$284,41,0)="","",HLOOKUP('Ibilgailu-mota'!$E$10,DE!$D$1:$AK$284,41,0)) -> 0
C27: ESKATU AHALAKO GARRAIO ZERBITZUAK
C29: Eskatu ahalako garraioko ibilgailuan doazen langileen eguneko dieta osoa (€/egun) | J29: =IF(HLOOKUP('Ibilgailu-mota'!$E$10,DE!$D$1:$AK$284,42,0)="","",HLOOKUP('Ibilgailu-mota'!$E$10,DE!$D$1:$AK$284,42,0)) -> 
C31: Dietarekin urtean egindako eskatu ahalako garraio egunen kopurua | J31: =IF(HLOOKUP('Ibilgailu-mota'!$E$10,DE!$D$1:$AK$284,43,0)="","",HLOOKUP('Ibilgailu-mota'!$E$10,DE!$D$1:$AK$284,43,0)) -> 
C33: Eskatu ahalako garraioko ibilgailuan doazen langileen eguneko nazioarteko dieta osoa (€/egun) | J33: =IF(HLOOKUP('Ibilgailu-mota'!$E$10,DE!$D$1:$AK$284,44,0)="","",HLOOKUP('Ibilgailu-mota'!$E$10,DE!$D$1:$AK$284,44,0)) -> 
C35: Nazioarteko dietarekin urtean egindako eskatu ahalako garraio egunen kopurua | J35: =IF(HLOOKUP('Ibilgailu-mota'!$E$10,DE!$D$1:$AK$284,45,0)="","",HLOOKUP('Ibilgailu-mota'!$E$10,DE!$D$1:$AK$284,45,0)) -> 
C37: Garraio erregularrengatiko urteko dieta guztiak (€) | H37: =IFERROR((H29*H31)+(H33*H35),0) -> 0 | J37: =IF(HLOOKUP('Ibilgailu-mota'!$E$10,DE!$D$1:$AK$284,46,0)="","",HLOOKUP('Ibilgailu-mota'!$E$10,DE!$D$1:$AK$284,46,0)) -> 0
C39: PERTSONAL KOSTUAK (€) | H39: =IFERROR(H11+H13+H25+H37,0) -> 0 | J39: =IF(HLOOKUP('Ibilgailu-mota'!$E$10,DE!$D$1:$AK$284,47,0)="","",HLOOKUP('Ibilgailu-mota'!$E$10,DE!$D$1:$AK$284,47,0)) -> 0

Sheet Aseguruak esta zerga arloko kos
C6: 4. Aseguruak esta zerga arloko kostuak
C9: Aseguruak | J9: Datu estadistikoak | K9: =DE!$AJ$2 -> 08/01/2024
C11: Autobusaren nahitaezko asegurua (€) | J11: =IF(HLOOKUP('Ibilgailu-mota'!$E$10,DE!$D$1:$AK$284,48,0)="","",HLOOKUP('Ibilgailu-mota'!$E$10,DE!$D$1:$AK$284,48,0)) -> 
C13: Erantzukizun zibila (€) | J13: =IF(HLOOKUP('Ibilgailu-mota'!$E$10,DE!$D$1:$AK$284,49,0)="","",HLOOKUP('Ibilgailu-mota'!$E$10,DE!$D$1:$AK$284,49,0)) -> 
C15: Bidaiarien nahitaezko asegurua (€) | J15: =IF(HLOOKUP('Ibilgailu-mota'!$E$10,DE!$D$1:$AK$284,50,0)="","",HLOOKUP('Ibilgailu-mota'!$E$10,DE!$D$1:$AK$284,50,0)) -> 
C17: Gidariaren istripu-asegurua (€) | J17: =IF(HLOOKUP('Ibilgailu-mota'!$E$10,DE!$D$1:$AK$284,51,0)="","",HLOOKUP('Ibilgailu-mota'!$E$10,DE!$D$1:$AK$284,51,0)) -> 
C19: Defentsa eta kalteengatiko erreklamazioa (€) | J19: =IF(HLOOKUP('Ibilgailu-mota'!$E$10,DE!$D$1:$AK$284,52,0)="","",HLOOKUP('Ibilgailu-mota'!$E$10,DE!$D$1:$AK$284,52,0)) -> 
C21: Suteen kontrako asegurua (€) | J21: =IF(HLOOKUP('Ibilgailu-mota'!$E$10,DE!$D$1:$AK$284,53,0)="","",HLOOKUP('Ibilgailu-mota'!$E$10,DE!$D$1:$AK$284,53,0)) -> 
C23: Beste aseguru batzuk (€) | J23: =IF(HLOOKUP('Ibilgailu-mota'!$E$10,DE!$D$1:$AK$284,54,0)="","",HLOOKUP('Ibilgailu-mota'!$E$10,DE!$D$1:$AK$284,54,0)) -> 
C25: ASEGURUEN GUZTIRA (€) | J25: =IF(HLOOKUP('Ibilgailu-mota'!$E$10,DE!$D$1:$AK$284,55,0)="","",HLOOKUP('Ibilgailu-mota'!$E$10,DE!$D$1:$AK$284,55,0)) -> 
C27: URTEAN GUZTIRA ASEGURUETAN GASTATUTAKOA (€) | H27: =IFERROR(H11+H13+H15+H17+H19+H21+H23+H25,0) -> 0 | J27: =IF(HLOOKUP('Ibilgailu-mota'!$E$10,DE!$D$1:$AK$284,56,0)="","",HLOOKUP('Ibilgailu-mota'!$E$10,DE!$D$1:$AK$284,56,0)) -> 0
C29: Zerga-arloko kostuak | J29: Datu estadistikoak | K29: =DE!$AJ$2 -> 08/01/2024
C31: Oniritziak (€) | J31: =IF(HLOOKUP('Ibilgailu-mota'!$E$10,DE!$D$1:$AK$284,57,0)="","",HLOOKUP('Ibilgailu-mota'!$E$10,DE!$D$1:$AK$284,57,0)) -> 
C33: Ibilgailuen azterketa teknikoa (IAT) (€) | J33: =IF(HLOOKUP('Ibilgailu-mota'!$E$10,DE!$D$1:$AK$284,58,0)="","",HLOOKUP('Ibilgailu-mota'!$E$10,DE!$D$1:$AK$284,58,0)) -> 
C35: Ibilgailu honi jasanaraz dakiokeen jarduera ekonomikoen gaineko zerga (JEZ) (€) | J35: =IF(HLOOKUP('Ibilgailu-mota'!$E$10,DE!$D$1:$AK$284,59,0)="","",HLOOKUP('Ibilgailu-mota'!$E$10,DE!$D$1:$AK$284,59,0)) -> 
C37: Trakzio Mekanikozko Ibilgailuen Zerga (TMIZ) (€) | J37: =IF(HLOOKUP('Ibilgailu-mota'!$E$10,DE!$D$1:$AK$284,60,0)="","",HLOOKUP('Ibilgailu-mota'!$E$10,DE!$D$1:$AK$284,60,0)) -> 
C39: Takografoaren azterketa (€) | J39: =IF(HLOOKUP('Ibilgailu-mota'!$E$10,DE!$D$1:$AK$284,61,0)="","",HLOOKUP('Ibilgailu-mota'!$E$10,DE!$D$1:$AK$284,61,0)) -> 
C41: Zerga-arloko beste kostu batzuk (€) | J41: =IF(HLOOKUP('Ibilgailu-mota'!$E$10,DE!$D$1:$AK$284,62,0)="","",HLOOKUP('Ibilgailu-mota'!$E$10,DE!$D$1:$AK$284,62,0)) -> 
C43: ZERGA ARLOKO KOSTUAK GUZTIRA (€) | J43: =IF(HLOOKUP('Ibilgailu-mota'!$E$10,DE!$D$1:$AK$284,63,0)="","",HLOOKUP('Ibilgailu-mota'!$E$10,DE!$D$1:$AK$284,63,0)) -> 
C45: URTEKO ZERGA ARLOKO KOSTUA GUZTIRA (€) | H45: =IFERROR(H31+H33+H35+H37+H39+H41+H43,0) -> 0 | J45: =IF(HLOOKUP('Ibilgailu-mota'!$E$10,DE!$D$1:$AK$284,64,0)="","",HLOOKUP('Ibilgailu-mota'!$E$10,DE!$D$1:$AK$284,64,0)) -> 0
C47: ASEGURUAK ETA ZERGA ARLOKO KOSTUAK (€) | H47: =IFERROR(H27+H45,0) -> 0 | J47: =IF(HLOOKUP('Ibilgailu-mota'!$E$10,DE!$D$1:$AK$284,65,0)="","",HLOOKUP('Ibilgailu-mota'!$E$10,DE!$D$1:$AK$284,65,0)) -> 0

Sheet Kostu aldakorrak
C6: 5. Kostu aldakorrak
C9: Erregaia | L9: Datu estadistikoak | M9: =DE!$AJ$2 -> 08/01/2024
C11: Erregaiaren prezioa BEZ barne (€/litroko) | L11: =IF(HLOOKUP('Ibilgailu-mota'!$E$10,DE!$D$1:$AK$284,66,0)="","",HLOOKUP('Ibilgailu-mota'!$E$10,DE!$D$1:$AK$284,66,0)) -> 
C13: Deskontua (%, €/litroko) | I13: % | J13: =IFERROR(ROUND((H13/100)*J11,2),0) -> 0 | K13: =IF(HLOOKUP(CONCATENATE('Ibilgailu-mota'!$E$10,"A"),DE!$C$1:$AK$300,67,0)="","",HLOOKUP(CONCATENATE('Ibilgailu-mota'!$E$10,"A"),DE!$C$1:$AK$300,67,0)) ->  | L13: =IF(HLOOKUP('Ibilgailu-mota'!$E$10,DE!$D$1:$AK$284,67,0)="","",HLOOKUP('Ibilgailu-mota'!$E$10,DE!$D$1:$AK$284,67,0)) -> 0
C15: Erregaiari aplikatutako BEZa (€/litroKO) | I15: % | J15: =IFERROR(ROUND((H15/100)*(J11-J13)/(1+H15/100),2),0) -> 0 | K15: =IF(HLOOKUP(CONCATENATE('Ibilgailu-mota'!$E$10,"A"),DE!$C$1:$AK$300,68,0)="","",HLOOKUP(CONCATENATE('Ibilgailu-mota'!$E$10,"A"),DE!$C$1:$AK$300,68,0)) ->  | L15: =IF(HLOOKUP('Ibilgailu-mota'!$E$10,DE!$D$1:$AK$284,68,0)="","",HLOOKUP('Ibilgailu-mota'!$E$10,DE!$D$1:$AK$284,68,0)) -> 0
C17: Erregaiaren prezioa, BEZ gabe (€/litro) | J17: =IFERROR(ROUND((J11-J13)/(1+H15/100),2),0) -> 0 | L17: =IF(HLOOKUP('Ibilgailu-mota'!$E$10,DE!$D$1:$AK$284,69,0)="","",HLOOKUP('Ibilgailu-mota'!$E$10,DE!$D$1:$AK$284,69,0)) -> 0
C19: URTEAN ERREGAITAN EGINDAKO GASTU OSOA, BEZ GABE (€) | J19: =IFERROR(ROUND(('Ibilgailuaren Ezaugarriak'!J23/100)*'Ibilgailuaren Ezaugarriak'!J27*'Kostu aldakorrak'!J17,0),0) -> 0 | L19: =IF(HLOOKUP('Ibilgailu-mota'!$E$10,DE!$D$1:$AK$284,70,0)="","",HLOOKUP('Ibilgailu-mota'!$E$10,DE!$D$1:$AK$284,70,0)) -> 0
C21: Urtean pneumatikoetan gastatutakoa | L21: Datu estadistikoak | M21: =DE!$AJ$2 -> 08/01/2024
C23: Norabidezko pneumatiko-kopurua | L23: =IF(HLOOKUP('Ibilgailu-mota'!$E$10,DE!$D$1:$AK$284,71,0)="","",HLOOKUP('Ibilgailu-mota'!$E$10,DE!$D$1:$AK$284,71,0)) -> 
C25: Pneumatiko eragile-kopurua | L25: =IF(HLOOKUP('Ibilgailu-mota'!$E$10,DE!$D$1:$AK$284,72,0)="","",HLOOKUP('Ibilgailu-mota'!$E$10,DE!$D$1:$AK$284,72,0)) -> 
C27: Arrasteko pneumatiko-kopurua | L27: =IF(HLOOKUP('Ibilgailu-mota'!$E$10,DE!$D$1:$AK$284,73,0)="","",HLOOKUP('Ibilgailu-mota'!$E$10,DE!$D$1:$AK$284,73,0)) -> 
C29: Norabidezko pneumatiko baten prezioa BEZ gabe (€) | L29: =IF(HLOOKUP('Ibilgailu-mota'!$E$10,DE!$D$1:$AK$284,74,0)="","",HLOOKUP('Ibilgailu-mota'!$E$10,DE!$D$1:$AK$284,74,0)) -> 
C31: Pneumatiko eragile bat prezioa BEZ gabe (€) | L31: =IF(HLOOKUP('Ibilgailu-mota'!$E$10,DE!$D$1:$AK$284,75,0)="","",HLOOKUP('Ibilgailu-mota'!$E$10,DE!$D$1:$AK$284,75,0)) -> 
C33: Arrasteko pneumatiko baten prezioa BEZ gabe (€) | L33: =IF(HLOOKUP('Ibilgailu-mota'!$E$10,DE!$D$1:$AK$284,76,0)="","",HLOOKUP('Ibilgailu-mota'!$E$10,DE!$D$1:$AK$284,76,0)) -> 
C35: Norabidezko pneumatiko baten batez besteko iraunaldia (km) | L35: =IF(HLOOKUP('Ibilgailu-mota'!$E$10,DE!$D$1:$AK$284,77,0)="","",HLOOKUP('Ibilgailu-mota'!$E$10,DE!$D$1:$AK$284,77,0)) -> 
C37: Pneumatiko eragile baten batez besteko iraunaldia (km) | L37: =IF(HLOOKUP('Ibilgailu-mota'!$E$10,DE!$D$1:$AK$284,78,0)="","",HLOOKUP('Ibilgailu-mota'!$E$10,DE!$D$1:$AK$284,78,0)) -> 
C39: Arrasteko pneumatiko baten batez besteko iraunaldia (km) | L39: =IF(HLOOKUP('Ibilgailu-mota'!$E$10,DE!$D$1:$AK$284,79,0)="","",HLOOKUP('Ibilgailu-mota'!$E$10,DE!$D$1:$AK$284,79,0)) -> 
C41: URTEAN GUZTIRA PNEUMATIKOETAN GASTATUTAKOA, BEZ GABE (€) | J41: =IFERROR(ROUND((J23*J29*'Ibilgailuaren Ezaugarriak'!J23/'Kostu aldakorrak'!J35)+(J25*J31*'Ibilgailuaren Ezaugarriak'!J23/'Kostu aldakorrak'!J37)+(J27*J33*'Ibilgailuaren Ezaugarriak'!J23/'Kostu aldakorrak'!J39),0),0) -> 0 | L41: =IF(HLOOKUP('Ibilgailu-mota'!$E$10,DE!$D$1:$AK$284,80,0)="","",HLOOKUP('Ibilgailu-mota'!$E$10,DE!$D$1:$AK$284,80,0)) -> 0
C43: Mantentze eta konponketengatiko gastuak | L43: Datu estadistikoak | M43: =DE!$AJ$2 -> 08/01/2024
C45: Mantentze eta konponketengatiko kilometroko gastuak, BEZ gabe (€/km) | L45: =IF(HLOOKUP('Ibilgailu-mota'!$E$10,DE!$D$1:$AK$284,81,0)="","",HLOOKUP('Ibilgailu-mota'!$E$10,DE!$D$1:$AK$284,81,0)) -> 
C47: URTEAN MANTENTZE ETA KONPONKETETAN EGINDAKO GASTU OSOA, BEZ GABE (€) | J47: =IFERROR(ROUND('Ibilgailuaren Ezaugarriak'!J23*'Kostu aldakorrak'!J45,2),0) -> 0 | L47: =IF(HLOOKUP('Ibilgailu-mota'!$E$10,DE!$D$1:$AK$284,82,0)="","",HLOOKUP('Ibilgailu-mota'!$E$10,DE!$D$1:$AK$284,82,0)) -> 0
C49: Bidesariak | L49: Datu estadistikoak | M49: =DE!$AJ$2 -> 08/01/2024
C51: URTEAN BIDESARITAN GASTATUTAKOA, BEZ GABE (€) | L51: =IF(HLOOKUP('Ibilgailu-mota'!$E$10,DE!$D$1:$AK$284,83,0)="","",HLOOKUP('Ibilgailu-mota'!$E$10,DE!$D$1:$AK$284,83,0)) -> 
C53: KOSTU ALDAKORRAK (€) | J53: =IFERROR(ROUND('Kostu aldakorrak'!J19+'Kostu aldakorrak'!J41+'Kostu aldakorrak'!J47+'Kostu aldakorrak'!J51,2),0) -> 0 | L53: =IF(HLOOKUP('Ibilgailu-mota'!$E$10,DE!$D$1:$AK$284,84,0)="","",HLOOKUP('Ibilgailu-mota'!$E$10,DE!$D$1:$AK$284,84,0)) -> 0
C55: ZUZENEKO KOSTUAK (€) | J55: =IFERROR(ROUND('Erosketa kostuak'!J63+'Ibilgailuan doazen langileen ko'!H39+'Aseguruak esta zerga arloko kos'!H47+'Kostu aldakorrak'!J53,2),0) -> 0 | L55: =IF(HLOOKUP('Ibilgailu-mota'!$E$10,DE!$D$1:$AK$284,85,0)="","",HLOOKUP('Ibilgailu-mota'!$E$10,DE!$D$1:$AK$284,85,0)) -> 0

Sheet Zeharkako kostuak
C6: 6. Zeharkako kostuak
C9: Zeharkako kostuak | J9: Datu estadistikoak | K9: =DE!$AJ$2 -> 08/01/2024
C11: Urtean izandako kudeketa, administrazio eta merkaturatze kostuak, ibilgailu honi egoztekoak direnak (€) | H11: =IFERROR(ROUND('Kostu aldakorrak'!J55/8,0),0) -> 0 | J11: =IF(HLOOKUP('Ibilgailu-mota'!$E$10,DE!$D$1:$AK$284,86,0)="","",HLOOKUP('Ibilgailu-mota'!$E$10,DE!$D$1:$AK$284,86,0)) -> 0
C13: ZEHARKAKO GASTUAK (€) | H13: =H11 -> 0 | J13: =IF(HLOOKUP('Ibilgailu-mota'!$E$10,DE!$D$1:$AK$284,87,0)="","",HLOOKUP('Ibilgailu-mota'!$E$10,DE!$D$1:$AK$284,87,0)) -> 0
C15: KOSTU GUZTIAK (€) | H15: =IFERROR(ROUND(H13+'Kostu aldakorrak'!J55,0),0) -> 0 | J15: =IF(HLOOKUP('Ibilgailu-mota'!$E$10,DE!$D$1:$AK$284,88,0)="","",HLOOKUP('Ibilgailu-mota'!$E$10,DE!$D$1:$AK$284,88,0)) -> 0

Sheet Emaitzak
C6: Emaitzak
C9: URTEKO KOSTUEN EMAITZAK | E9: Erabiltzailea | H9: Datu estadistikoak | I9: =DE!$AJ$2 -> 08/01/2024
E10: Euro | F10: % | H10: Euro | I10: %
C11: KOSTU GUZTIAK | E11: =E12+E21 -> 0 | F11: 100 | H11: =H12+H21 -> 0 | I11: 100
C12: KOSTUAK DENBORAREN ARABERA | E12: =IFERROR(SUM(E13:E20),0) -> 0 | F12: =IFERROR(E12*F11/E11,0) -> 0 | H12: =IFERROR(SUM(H13:H20),0) -> 0 | I12: =IFERROR(H12*I11/H11,0) -> 0
C13: Leasinga | D13: A | E13: ='Erosketa kostuak'!J13+'Erosketa kostuak'!J31+'Erosketa kostuak'!J49 -> 0 | F13: =IFERROR(E13*F$11/E$11,0) -> 0 | G13: A | H13: ='Erosketa kostuak'!L13+'Erosketa kostuak'!L31+'Erosketa kostuak'!L49 ->  | I13: =IFERROR(H13*I$11/H$11,0) -> 0 | K13: A | L13: =E13 -> 0 | M13: 0 | N13: A | O13: =H13 ->  | P13: 0
C14: Amortización | D14: B | E14: ='Erosketa kostuak'!J23+'Erosketa kostuak'!J41+'Erosketa kostuak'!J59 -> 0 | F14: 0 | G14: B | H14: ='Erosketa kostuak'!L23+'Erosketa kostuak'!L41+'Erosketa kostuak'!L59 -> 0 | I14: 0 | K14: B | L14: 0 | M14: 0 | N14: B | O14: 0 | P14: 0
C15: Finantza-gastuak | D15: C | E15: ='Erosketa kostuak'!J25+'Erosketa kostuak'!J43+'Erosketa kostuak'!J61 -> 0 | F15: 0 | G15: C | H15: ='Erosketa kostuak'!L25+'Erosketa kostuak'!L43+'Erosketa kostuak'!L61 -> 0 | I15: 0 | K15: C | L15: 0 | M15: 0 | N15: C | O15: 0 | P15: 0
C16: Gidariaren urteko kostua guztira | D16: D | E16: ='Ibilgailuan doazen langileen ko'!H11 -> 0 | F16: 0 | G16: D | H16: ='Ibilgailuan doazen langileen ko'!J11 ->  | I16: 0 | K16: D | L16: 0 | M16: 0 | N16: D | P16: 0
C17: Dietak guztira eta jarduera-plusa | D17: E | E17: ='Ibilgailuan doazen langileen ko'!H13+'Ibilgailuan doazen langileen ko'!H25+'Ibilgailuan doazen langileen ko'!H37 -> 0 | F17: 0 | G17: E | H17: ='Ibilgailuan doazen langileen ko'!J13+'Ibilgailuan doazen langileen ko'!J25+'Ibilgailuan doazen langileen ko'!J37 ->  | I17: 0 | K17: E | L17: 0 | M17: 0 | N17: E | P17: 0
C18: Aseguruak | D18: F | E18: ='Aseguruak esta zerga arloko kos'!H27 -> 0 | F18: 0 | G18: F | H18: ='Aseguruak esta zerga arloko kos'!J27 -> 0 | I18: 0 | K18: F | L18: 0 | M18: 0 | N18: F | O18: 0 | P18: 0
C19: Zerga-arloko kostuak | D19: G | E19: ='Aseguruak esta zerga arloko kos'!H45 -> 0 | F19: 0 | G19: G | H19: ='Aseguruak esta zerga arloko kos'!J45 -> 0 | I19: 0 | K19: G | L19: 0 | M19: 0 | N19: G | O19: 0 | P19: 0
C20: Kudeaketa eta merkaturatzea | D20: H | E20: ='Zeharkako kostuak'!H13 -> 0 | F20: 0 | G20: H | H20: ='Zeharkako kostuak'!J13 -> 0 | I20: 0 | K20: H | L20: 0 | M20: 0 | N20: H | O20: 0 | P20: 0
C21: KOSTUAK IBILBIDEAREN ARABERA | E21: =IFERROR(SUM(E22:E25),0) -> 0 | F21: =IFERROR(E21*F20/E20,0) -> 0 | H21: =IFERROR(SUM(H22:H25),0) -> 0 | I21: =IFERROR(H21*I20/H20,0) -> 0 | K21: I | L21: =E22 -> 0 | M21: 0 | N21: I | O21: =H22 -> 0 | P21: 0
C22: Erregaia | D22: I | E22: ='Kostu aldakorrak'!J19 -> 0 | F22: =IFERROR(E22*F$11/E$11,0) -> 0 | G22: I | H22: ='Kostu aldakorrak'!L19 -> 0 | I22: =IFERROR(H22*I$11/H$11,0) -> 0 | K22: J | L22: 0 | M22: 0 | N22: J | O22: 0 | P22: 0
C23: Pneumatikoak | D23: J | E23: ='Kostu aldakorrak'!J41 -> 0 | F23: =IFERROR(E23*F$11/E$11,0) -> 0 | G23: J | H23: ='Kostu aldakorrak'!L41 -> 0 | I23: =IFERROR(H23*I$11/H$11,0) -> 0 | K23: K | L23: 0 | M23: 0 | N23: K | O23: 0 | P23: 0
C24: Mantentzea eta konponketak | D24: K | E24: ='Kostu aldakorrak'!J47 -> 0 | F24: =IFERROR(E24*F$11/E$11,0) -> 0 | G24: K | H24: ='Kostu aldakorrak'!L47 -> 0 | I24: =IFERROR(H24*I$11/H$11,0) -> 0 | K24: L | L24: 0 | M24: 0 | N24: L | P24: 0
C25: Bidesariak | D25: L | E25: ='Kostu aldakorrak'!J51 -> 0 | F25: =IFERROR(E25*F$11/E$11,0) -> 0 | G25: L | H25: ='Kostu aldakorrak'!L51 ->  | I25: =IFERROR(H25*I$11/H$11,0) -> 0
C41: URTEKO KOSTUEN EGITURA | E41: Erabiltzailea | H41: Datu estadistikoak | I41: =DE!$AJ$2 -> 08/01/2024
E42: Euro | F42: % | H42: Euro | I42: %
C43: Amortizazioa eta finantza-gastuak eta leasinga | D43: A | E43: =E13+E14+E15 -> 0 | F43: =IFERROR(E43*$F$48/$E$48,0) -> 0 | G43: A | H43: =H13+H14+H15 ->  | I43: =IFERROR(H43*$I$48/$H$48,0) -> 0
C44: Langileak | D44: B | E44: =E16+E17 -> 0 | F44: =IFERROR(E44*$F$48/$E$48,0) -> 0 | G44: B | H44: =H16+H17 ->  | I44: =IFERROR(H44*$I$48/$H$48,0) -> 0
C45: Aseguruak, zerga-arloko kostuak, kudeaketa eta merkaturatzea | D45: C | E45: =E18+E19+E20 -> 0 | F45: =IFERROR(E45*$F$48/$E$48,0) -> 0 | G45: C | H45: =H18+H19+H20 -> 0 | I45: =IFERROR(H45*$I$48/$H$48,0) -> 0
C46: Erregaia, pneumatikoak, konponketak, mantentzea eta bidesariak | D46: D | E46: =E22+E23+E24+E25 -> 0 | F46: =IFERROR(E46*$F$48/$E$48,0) -> 0 | G46: D | H46: =H22+H23+H24+H25 ->  | I46: =IFERROR(H46*$I$48/$H$48,0) -> 0
C48: GUZTIZKO KOSTUAK | E48: =SUM(E43:E46) -> 0 | F48: 100 | H48: =SUM(H43:H46) ->  | I48: 100
C68: KOSTUAK DENBORAREN ARABERA- KOSTUAK IBILBIDEAREN ARABERA | E68: Erabiltzailea | H68: Datu estadistikoak | I68: =DE!$AJ$2 -> 08/01/2024
E70: Euro | F70: % | H70: Euro | I70: %
C72: Kostuak denboraren arabera | D72: A | E72: =E12 -> 0 | F72: =IFERROR(E72*$F$48/$E$48,0) -> 0 | G72: A | H72: =H12 -> 0 | I72: =IFERROR(H72*$I$48/$H$48,0) -> 0
C73: Kostuak ibilbidearen arabera | D73: B | E73: =E21 -> 0 | F73: =IFERROR(E73*$F$48/$E$48,0) -> 0 | G73: B | H73: =H21 -> 0 | I73: =IFERROR(H73*$I$48/$H$48,0) -> 0
C75: GUZTIZKO KOSTUAK | E75: =SUM(E72:E73) -> 0 | F75: 100 | H75: =SUM(H72:H73) -> 0 | I75: 100
C91: BATEZ BESTEKO KOSTUAK | E91: Erabiltzailea | H91: Datu estadistikoak | I91: =DE!$AJ$2 -> 08/01/2024
C93: Batez besteko kostu guztia (km-ko) | E93: =IFERROR('Zeharkako kostuak'!H15/'Ibilgailuaren Ezaugarriak'!J23,0) -> 0 | H93: =IFERROR('Zeharkako kostuak'!J15/'Ibilgailuaren Ezaugarriak'!L23,0) -> 0
C94: Batez besteko kostu guztia (orduko) | E94: =IFERROR('Zeharkako kostuak'!H15/'Ibilgailuaren Ezaugarriak'!J29,0) -> 0 | H94: =IFERROR('Zeharkako kostuak'!J15/'Ibilgailuaren Ezaugarriak'!L29,0) -> 0
C95: Batez besteko kostu guztia (fakturatutako km-ko) | E95: =IFERROR('Zeharkako kostuak'!H15/'Ibilgailuaren Ezaugarriak'!J25,0) -> 0 | H95: =IFERROR('Zeharkako kostuak'!J15/'Ibilgailuaren Ezaugarriak'!L25,0) -> 0
C96: Batez besteko kostu guztia (fakturatutako orduko) | E96: =IFERROR('Zeharkako kostuak'!H15/'Ibilgailuaren Ezaugarriak'!J31,0) -> 0 | H96: =IFERROR('Zeharkako kostuak'!J15/'Ibilgailuaren Ezaugarriak'!L31,0) -> 0
C97: Distantzia ertaineko kostua (km-ko) | E97: =IFERROR(E73/'Ibilgailuaren Ezaugarriak'!J23,0) -> 0 | H97: =IFERROR(H73/'Ibilgailuaren Ezaugarriak'!L23,0) -> 0
C98: Distantzia ertaineko kostua (fakturatutako km-ko) | E98: =IFERROR(E73/'Ibilgailuaren Ezaugarriak'!J25,0) -> 0 | H98: =IFERROR(H73/'Ibilgailuaren Ezaugarriak'!L25,0) -> 0
C99: Bidaldi ertaineko kostua (orduko) | E99: =IFERROR(E72/'Ibilgailuaren Ezaugarriak'!J29,0) -> 0 | H99: =IFERROR(H72/'Ibilgailuaren Ezaugarriak'!L29,0) -> 0
C100: Bidaldi ertaineko kostua (fakturatutako orduko) | E100: =IFERROR(E72/'Ibilgailuaren Ezaugarriak'!J31,0) -> 0 | H100: =IFERROR(H72/'Ibilgailuaren Ezaugarriak'!L31,0) -> 0
C101: Bidaiari-kilometroko kostu guztiak | E101: =IFERROR('Zeharkako kostuak'!H15/'Ibilgailuaren Ezaugarriak'!J35/'Ibilgailuaren Ezaugarriak'!J37,0) -> 0 | H101: =IFERROR('Zeharkako kostuak'!J15/'Ibilgailuaren Ezaugarriak'!L35/'Ibilgailuaren Ezaugarriak'!L37,0) -> 0

Sheet Zerbitzuaren kostua
C6: Zerbitzuaren kostua
C9: ZERBITZUAREN KOSTUA
C11: Zerbitzuaren izena
C13: Zerbitzu honetan egindako kilometroak
C15: Kilometroak bidaiariko (km)
C17: Zerbitzu honetan batez besteko kontsumoa kilometroko (litro / 100 km-ko)
C19: Zerbitzu honetan bidaiariek batez beste okupatutako plaza kopurua
C21: Zerbitzu honen guztizko orduak (h)
C23: Bidesariak (€)
C25: Zerbitzu honen kostua ibilbidearen arabera (€) | H25: =IFERROR(ROUND((H13*H17/100*'Kostu aldakorrak'!J17)+(H13*('Kostu aldakorrak'!J41+'Kostu aldakorrak'!J47)/'Ibilgailuaren Ezaugarriak'!J23)+H23,2),0) -> 0
C27: Zerbitzu honen kostua denboraren arabera (€) | H27: =IFERROR(ROUND(H21*('Erosketa kostuak'!J63+'Ibilgailuan doazen langileen ko'!H39+'Aseguruak esta zerga arloko kos'!H47+'Zeharkako kostuak'!H13)/'Ibilgailuaren Ezaugarriak'!J29,2),0) -> 0
C29: Zerbitzu honekin lotutako beste kostu batzuk (€)
C31: Zerbitzu honen guztizko kostua (€) | H31: =IFERROR(ROUND(H25+H27+H29,2),0) -> 0
C33: Zerbitzu honen bidaiari-kilometroko kostua (€) | H33: =IFERROR(ROUND(H31/H13/H19,3),0) -> 0
